Cogmind - Beta 17.1 @@@ ROGUE MODE // 2026.09.01 @ 21:48:59 Player: SnailSD Result: Destroyed by WI-VCW(R) with Subdweller Beam Cannon Performance ------------- Evolutions (0) 0 Regions Visited (3) 600 Robots Destroyed (22) 110 Value Destroyed (371) 371 Prototype IDs (0) 0 Alien Tech Used (0) 0 Bonus (0) 0 TOTAL SCORE: 1081 Bonus ------- None Cogmind --------- Core Integrity 0/250 Matter 243/300 Energy 61/100 System Corruption 1% Temperature Cool (9) Movement Treading (240) Ox1 Location -10/Subcaves Parts ------- > --- POWER (1) -------- (None) > --- PROPULSION (2) --- Light Treads Light Treads > --- UTILITY (2) ------ High-capacity Storage Unit Signal Interpreter > --- WEAPON (2) ------- Light Assault Rifle > --- INVENTORY (20) --- Ion Engine Ion Engine Light Ion Engine Light Ion Engine Light Treads Wheel Heat Sink Heat Sink Small Matter Pod (50) Subdweller Optics Seismic Detector Medium Laser Medium Laser Mining Laser Flamer Peak State ------------ > --- POWER ------------ Ion Engine > --- PROPULSION ------- Compact Wheel Compact Wheel > --- UTILITY ---------- High-capacity Storage Unit Seismic Detector > --- WEAPON ----------- Light Assault Rifle Light Assault Rifle > --- INVENTORY -------- Ion Engine Ion Engine Light Ion Engine Light Treads Light Treads Light Treads Wheel Compact Wheel Heat Sink Heat Sink Small Storage Unit Small Matter Pod Improved Terrain Scanner EM Pulse Gun EM Pulse Gun Medium Laser Medium Laser Beam Cannon [Rating: 9] Favorites ----------- Power Ion Engine Engine Ion Engine Propulsion Compact Wheel Treads Light Treads Wheel Compact Wheel Utility High-capacity Storage Unit Device Seismic Detector Storage High-capacity Storage Unit Processor Signal Interpreter Weapon Light Assault Rifle Energy Cannon Beam Cannon Ballistic Gun Light Assault Rifle Special Weapon Mining Laser Build | -11 -10 -10 -10 ------- Run | Yrd Mat Min Sub Slots Evolved . | . . . . Power . | . . . . Propulsion . | . . . . Utility . | . . . . Weapon . | . . . . Parts Attached 18 | 7 7 3 1 Power 2 | 1 1 . . Engine 2 | 1 1 . . Core . | . . . . Reactor . | . . . . Propulsion 7 | 2 3 1 1 Treads 3 | 2 . . 1 Leg . | . . . . Wheel 4 | . 3 1 . Hover . | . . . . Flight . | . . . . Utility 4 | 2 1 1 . Device 1 | 1 . . . Storage 2 | 1 1 . . Processor 1 | . . 1 . Hackware . | . . . . Protection . | . . . . Artifact . | . . . . Weapon 5 | 2 2 1 . Energy Gun . | . . . . Energy Cannon 1 | . 1 . . Ballistic Gun 3 | 2 . 1 . Ballistic Cannon . | . . . . Launcher . | . . . . Special Weapon 1 | . 1 . . Impact Weapon . | . . . . Slashing Weapon . | . . . . Piercing Weapon . | . . . . Special Melee Weapon . | . . . . Unidentified Prototypes . | . . . . Parts Lost 8 | . 3 2 3 Power 2 | . 1 . 1 Propulsion 3 | . 1 1 1 Utility . | . . . . Weapon 3 | . 1 1 1 Highest Loss Streak 3 | . 2 2 3 To Critical Strikes . | . . . . Average Backups 11 | 5 14 15 15 Power 2 | . 2 4 4 Propulsion 2 | 2 3 3 3 Utility 3 | 1 4 4 4 Weapon 2 | . 3 3 3 Tool/Special . | . . . . Unused Backups 18 | 4 3 . 11 Power 4 | . . . 4 Propulsion 4 | 4 . . . Utility 5 | . 1 . 4 Weapon 5 | . 2 . 3 Tool/Special . | . . . . Average Slot Usage (%) 97 | . 96 100 98 Engine 13 | . 13 14 12 Wheel 26 | . 25 28 26 Device 12 | . 14 14 . Storage 14 | . 14 14 14 Processor 1 | . . . 14 Energy Cannon 5 | . 3 14 14 Ballistic Gun 19 | . 22 8 14 Special Weapon 1 | . 1 5 . Peak Build Rating 9 | 7 9 8 8 Average Rating 7 | 5 7 7 7 On Entrance 5 | . 7 8 8 Avg Prop Armor Cover (%) . | . . . . Naked Turns . | . . . . Heaviest Build 50 | 13 50 50 49 Greatest Support 40 | 40 32 32 40 Greatest Overweight (x) 4 | 3 3 1 4 Average Overweight (x) . | . 1 1 1 Largest Inventory Capacity 20 | 8 20 20 20 Average Capacity 16 | 7 19 20 20 Most Carried 20 | 8 20 17 16 Average Carried 11 | 5 14 15 15 Final Capacity 20 | 8 20 20 20 Final Carried 16 | 6 16 14 15 Class Distribution -------------------- 100% | Mutant Dominant Class ---------------- Mutant | -10/Materials Mutant | -10/Mines Mutant | -10/Subcaves Resources | -11 -10 -10 -10 ----------- Run | Yrd Mat Min Sub Matter Collected 500 | 342 137 21 . Remotely . | . . . . Salvage Created 700 | 212 462 26 . Parts 51 | 20 30 1 . Haulers Intercepted 1 | . 1 . . Recyclers Shooed 2 | 1 1 . . Parts Field Recycled . | . . . . Retrieved Matter . | . . . . Parts Self-Destructed . | . . . . Prevented . | . . . . Parts Restored . | . . . . Kills | -11 -10 -10 -10 ------- Run | Yrd Mat Min Sub Combat Hostiles Destroyed 12 | . 10 2 . Guns 9 | . 8 1 . Cannons 3 | . 2 1 . Classes Destroyed 7 | 3 4 . . Worker 2 | 2 . . . Tunneler 4 | 4 . . . Hauler 1 | . 1 . . Recycler 2 | 1 1 . . Watcher 1 | . 1 . . Swarmer 5 | . 3 2 . Grunt 7 | . 7 . . Best Kill Streak 5 | 3 5 2 . Combat Bots Only 5 | . 5 2 . Max Kills in Single Turn 1 | 1 1 1 . Gunslinging . | . . . . Exploded . | . . . . Melee . | . . . . Uniques/NPCs Destroyed . | . . . . Combat | -11 -10 -10 -10 -------- Run | Yrd Mat Min Sub Hostile Shots Fired 100 | . 67 24 9 Missed 21 | . 13 7 1 Hits 79 | . 54 17 8 Projectile 79 | . 54 17 8 Damage Taken 917 | . 581 131 205 Core 271 | . 171 41 59 Absorbed by Shields . | . . . . Regen/Repaired (Parts) 53 | . 53 . . Core Remaining (%) 100 | 100 . . . Volleys Fired 88 | 29 52 7 . Largest 2 | 2 2 2 . Hottest 100 | 40 100 80 . Shots Fired 172 | 58 100 14 . Gun 155 | 58 90 7 . Cannon 15 | . 8 7 . Launcher . | . . . . Special 2 | . 2 . . Kinetic 155 | 58 90 7 . Thermal 17 | . 10 7 . Explosive . | . . . . Electromagnetic . | . . . . Robot Hit Streak 8 | 8 7 2 . Robot Miss Streak 4 | 2 3 4 . Penetration Max . | . . . . Secondary Targets 3 | . 3 . . Max Gunslinging Chain 1 | . 1 . . Shots Hit Robots 110 | 38 67 5 . Core Hits 46 | 14 29 3 . Critical Kills 1 | 1 . . . Critical Parts Destroyed 1 | . 1 . . Critical Strikes 2 | 1 1 . . Destroy 2 | 1 1 . . Melee Attacks . | . . . . Impact . | . . . . Slashing . | . . . . Piercing . | . . . . Sneak Attacks . | . . . . Combat Hostiles . | . . . . Follow-up Attacks . | . . . . Damage Inflicted 982 | 318 590 74 . Guns 866 | 318 511 37 . Cannons 92 | . 55 37 . Explosions . | . . . . Melee . | . . . . Ramming . | . . . . Kinetic 866 | 318 511 37 . Thermal 116 | . 79 37 . Explosive . | . . . . Electromagnetic . | . . . . Impact . | . . . . Slashing . | . . . . Piercing . | . . . . Highest Corruption 1 | . 1 1 1 Average Corruption 1 | . 1 1 1 Corruption Purged . | . . . . Corruption Blocked . | . . . . Effects 8 | . 5 2 1 Message Errors 2 | . 1 1 . Matter Fused 1 | . 1 . . Energy Discharges 2 | . 2 . . Data Loss (minor) 2 | . . 1 1 Weapon Failures 1 | . 1 . . Overload Shots . | . . . . Overflow Damage . | . . . . Projectiles . | . . . . Explosions . | . . . . Melee . | . . . . Knockbacks . | . . . . Impact . | . . . . Kinetic . | . . . . Secondary . | . . . . Self-Inflicted Damage . | . . . . Shots . | . . . . Rammed . | . . . . Targets Rammed . | . . . . Kicked . | . . . . Crushed . | . . . . Highest Temperature 140 | . 120 140 . Average Temperature 40 | . 32 61 . Received Heat Transfer 309 | . 255 . 54 Siege Activations . | . . . . Martial Activations . | . . . . Shielding Activations . | . . . . Robots Disrupted . | . . . . Combat Hostiles . | . . . . Robots Corrupted . | . . . . Combat Hostiles . | . . . . Parts Fried . | . . . . Impact Corruptions . | . . . . Robots Melted . | . . . . Combat Hostiles . | . . . . Parts Melted . | . . . . Heat Transferred 235 | . 161 74 . Parts Sabotaged . | . . . . Parts Stolen . | . . . . Parts Stripped . | . . . . Power Chain Reactions . | . . . . Alert | -11 -10 -10 -10 ------- Run | Yrd Mat Min Sub Maximum Alert Level . | . . . . Low Security (%) 100 | 100 100 100 . Level 1 . | . . . . Level 2 . | . . . . Level 3 . | . . . . Level 4 . | . . . . Level 5 . | . . . . High Security . | . . . . Max Security . | . . . . Peak Influence 94 | 10 94 50 . Initial 26 | . . 26 . Average 17 | . 25 24 . Influence Increases 369 | 35 284 50 . Destroy 0b10 Robot/C 240 | . 200 40 . Destroy 0b10 Robot/NC 50 | 35 15 . . Destroy Leader 54 | . 44 10 . Successful Hack 10 | . 10 . . Disable Machine 15 | . 15 . . Influence Decreases 369 | 35 215 89 30 Entered New Map 59 | . . 43 16 Time Decay 232 | 35 143 40 14 Lost Part 26 | . 20 6 . Purge Threat 52 | . 52 . . Squads Dispatched 2 | . 2 . . Investigation 1 | . 1 . . Extermination . | . . . . Reinforcement 1 | . 1 . . Assault . | . . . . Garrison . | . . . . Intercept . | . . . . Searches Triggered . | . . . . Construction Impeded . | . . . . Haulers Reinforced . | . . . . Active Scanning Responses . | . . . . Cargo Convoy Interrupts . | . . . . Stealth | -11 -10 -10 -10 --------- Run | Yrd Mat Min Sub Distress Signals 2 | . 2 . . Communications Jammed . | . . . . Distress Signals . | . . . . Times Spotted 21 | . 16 3 2 Peak Tracking Total 4 | . 4 3 2 Tactical Retreats . | . . . . Traps | -11 -10 -10 -10 ------- Run | Yrd Mat Min Sub Traps Triggered . | . . . . Indirectly . | . . . . Trap Hack Attempts . | . . . . Triggered . | . . . . Disarmed . | . . . . Reprogrammed . | . . . . Reused . | . . . . Traps Extracted . | . . . . Installed . | . . . . Triggered . | . . . . Machines | -11 -10 -10 -10 ---------- Run | Yrd Mat Min Sub Machines Disabled 1 | . 1 . . Max in Single Turn 1 | . 1 . . Machines Repaired . | . . . . Machines Dismantled . | . . . . Machines Sabotaged . | . . . . Overloaded Fab Kills . | . . . . Hacking | -11 -10 -10 -10 --------- Run | Yrd Mat Min Sub Machines Accessed 5 | . 5 . . Terminals 4 | . 4 . . Fabricators . | . . . . Repair Stations 1 | . 1 . . Recycling Units . | . . . . Scanalyzers . | . . . . Garrison Access . | . . . . Total Hacks 12 | . 12 . . Successful 5 | . 5 . . Failed 6 | . 6 . . Catastrophic 1 | . 1 . . Database Lockouts 1 | . 1 . . Manual 8 | . 8 . . Terminals 10 | . 10 . . Fabricators . | . . . . Repair Stations 2 | . 2 . . Recycling Units . | . . . . Scanalyzers . | . . . . Garrison Access . | . . . . Terminal Hacks 3 | . 3 . . Robot Analysis 1 | . 1 . . Unreport Threat 2 | . 2 . . Fabricator Hacks . | . . . . Repair Station Hacks 2 | . 2 . . Scan Component 1 | . 1 . . Repair 1 | . 1 . . Recycling Unit Hacks . | . . . . Scanalyzer . | . . . . Garrison Access Hacks . | . . . . Unauthorized Hacks . | . . . . Terminals . | . . . . Fabricators . | . . . . Repair Stations . | . . . . Recycling Units . | . . . . Scanalyzers . | . . . . Garrison Access . | . . . . Data Cores Recovered . | . . . . Used . | . . . . Hacking Detections 5 | . 5 . . Full Trace Events 2 | . 2 . . Feedback Events 1 | . 1 . . Corruption 1 | . 1 . . Feedback Blocked . | . . . . Robot Schematics Acquired . | . . . . Robots Built . | . . . . Authchips . | . . . . Time . | . . . . Total Robot Build Rating . | . . . . Part Schematics Acquired . | . . . . Parts Built . | . . . . Authchips . | . . . . Time . | . . . . Total Part Build Rating . | . . . . Part Studies Acquired . | . . . . Parts Repaired 1 | . 1 . . Time 26 | . 26 . . Parts Recycled . | . . . . Recycled Matter . | . . . . Retrieved Matter . | . . . . Retrieved Components . | . . . . Parts Scanalyzed . | . . . . Part Schematics Acquired . | . . . . Parts Damaged . | . . . . Bothacking | -11 -10 -10 -10 ------------ Run | Yrd Mat Min Sub Used RIF Installer . | . . . . Robots Hacked . | . . . . Non-combat . | . . . . Combat . | . . . . Robot Hacks Applied . | . . . . Relay Couplers Released . | . . . . Fabnet Peak Effective % . | . . . . Robots Rewired . | . . . . Allies Hacked . | . . . . Hacks Repelled . | . . . . Allies | -11 -10 -10 -10 -------- Run | Yrd Mat Min Sub Total Allies . | . . . . Largest Group . | . . . . Highest-Rated Group . | . . . . Highest-Rated Ally . | . . . . Total Orders . | . . . . Ally Attacks . | . . . . Total Damage . | . . . . Kills . | . . . . Allies Corrupted . | . . . . Allies Melted . | . . . . Intel | -11 -10 -10 -10 ------- Run | Yrd Mat Min Sub Active Infowar (turns) 820 | 34 679 107 . Seismic 820 | 34 679 107 . Robot Analysis Total 1 | . 1 . . Derelict Logs Recovered 1 | . . 1 . Drone Launches . | . . . . Drone Recoveries . | . . . . Exploration | -11 -10 -10 -10 ------------- Run | Yrd Mat Min Sub Turns Passed 1271 | 376 679 108 108 Spaces Moved 759 | 181 411 70 97 Core 25 | 25 . . . Treads 157 | 156 . . 1 Legs . | . . . . Wheels 577 | . 411 70 96 Hover . | . . . . Flight . | . . . . Fastest Speed 50 | 50 100 105 105 Average Speed 124 | 154 117 110 107 Slowest Speed 240 | 200 145 115 240 Overloaded Moves . | . . . . Propulsion Burnouts . | . . . . Robots Hopped . | . . . . Potential Cave-ins . | . . . . Cave-ins Triggered . | . . . . Exploration Rate (%) 24 | 6 60 23 10 Regions Visited 3 Branch Regions 2 Pre-discovered Areas 1 | . . 1 . Known Exits Taken 1 | . . 1 . Unknown Exits Taken 2 | 1 1 . . Scrap Searched . | . . . . Spaces Dug . | . . . . Terrain Destroyed . | . . . . Melee . | . . . . Projectile . | . . . . AOE . | . . . . Terrain Rammed . | . . . . Walls Destroyed . | . . . . Machines Disabled . | . . . . Actions | -11 -10 -10 -10 --------- Run | Yrd Mat Min Sub Total 942 | 230 521 89 102 Wait 34 | . 27 7 . Move 756 | 180 410 69 97 Hop . | . . . . Pick Up 27 | 10 15 . 2 Fast Attach 9 | 7 2 . . Attach 12 | . 6 4 2 Detach 7 | . 4 2 1 Swap 1 | . 1 . . Drop 8 | 4 4 . . Fire 88 | 29 52 7 . Melee . | . . . . Ram . | . . . . Kick . | . . . . Crush . | . . . . Escape Stasis . | . . . . Rewire . | . . . . Trap . | . . . . Miscellaneous . | . . . . Route ------- -11/Scrapyard -10/Materials (discovered 2 exits: [*Mat] / [*Min]) -10/Mines -10/Subcaves (discovered 1 exit: *Mat) History --------- Turn | Location | Event 33 | -11/Scrapyard | Discovered new exit (range 15) 377 | -11/Scrapyard | Entered Materials 405 | -10/Materials | Build established: Mutant 640 | -10/Materials | Repaired Lgt. Assault Rifle 694 | -10/Materials | Discovered new exit (range 16) 837 | -10/Materials | Central database locked down 920 | -10/Materials | Core integrity fell below 50% 963 | -10/Materials | Discovered new exit (range 8) 1056 | -10/Materials | Entered Mines 1076 | -10/Mines | Learned location of Zion (-7) 1122 | -10/Mines | Core integrity fell below 20% 1131 | -10/Mines | Assembled infested the area 1136 | -10/Mines | Assisted by a Guerilla fighting off Assembled 1153 | -10/Mines | Discovered new exit (range 10) 1164 | -10/Mines | Identified exit to Subcaves 1164 | -10/Mines | Entered Subcaves 1182 | -10/Subcaves | Shifting Twisted Machinery released Sub. Optics 1182 | -10/Subcaves | Discovered new exit (range 12) 1195 | -10/Subcaves | Identified exit to Materials 1200 | -10/Subcaves | Shifting Twisted Machinery released Flamer 1272 | -10/Subcaves | Destroyed by WI-VCW(R) with Subdweller Beam Cannon Last Messages --------------- 01131_ Acquired 10 matter. 01132_ Acquired 11 matter. 01133_ R-06 Scavenger collects Flight Unit. 01153_ EXIT=FOUND 01157_ U-05 Engineer builds a Wall. 01164_ EXIT=IDENTIFIED: SUBCAVES LOCATION=SUBCAVES AMBIENT_HEAT=-10 GOAL=ESCAPE Sub. Optics falls loose from the Twisted Machinery. 01182_ EXIT=FOUND 01184_ Acquired Sub. Optics. 01195_ EXIT=IDENTIFIED: MATERIALS Flamer falls loose from the Twisted Machinery. 01219_ Acquired Flamer. 01262_ Com. Wheel destroyed. 01263_ System corrupted: Component data lost. 01264_ Ion Engine destroyed. 01270_ Beam Cannon destroyed. Map ----- +----------------------------------------------------+ | ?????????????????????????????????????????????????? | | ?????????????????????????????????????????????????? | | ?????????????????????????????????????????????????? | | ?????????????????????????????????????????????????? | | ?????????????????????????????????????????????????? | | ?????????????????????????????????????????????????? | | ?????????????????????????????????????????????????? | | ??????????????????????????###????????????????????? | | ?????????????????????????## ##???????????????????? | | ??????????????????????####" ##??????????????????# | | ??????????????"???????# """ #??????????#"##????# | | ??????????????""??????# "" #??????????#""#????# | | ?????????????? "??????# "" #??????????# #????# | | ?????????????? ""????##"##" ######?????# #????# | | ?????????????? """"?##""##" ##???## #???## | | ?????????????? """?## "##" ###?# #???# | | ????????????## ##""" ### "#??## | | ????????????# ## """ """"""#### | | ???????????## ## """ # """" | | ??????????##% ## """ ### ## ""# | | ??????????# ?# """ ##?## ## # " | | ??????????# ?## " #???###### ## " | | ??????????# ### "" ###?### ## ##" | | ??????????# ## ### ##"" | | ??????????# R ### ## "" | | ??????????#% R @ ###?# ## " | | ??????????#% ### ### ##??## # | | ??????????# #?# ##?# ##???# # | | ??????????# ##?# ###??## ##????# ### ## | | ??????????# ##??#####?????#####?????###### ## | | ??????????# ##????????????????????????????## # | | ??????????## #?????????????????????????????# # | | ???????????# #?????????????????????????????## ## | | ???????????# ##?????????????????????????????## # | | ???????????##???????????????????????????????# # | | ????????????????????????????????????????????# # | | ????????????????????????????????????????????# | | ????????????????????????????????????????????## | | ?????????????????????????????????????????????## | | ??????????????????????????????????????????????### | | ????????????????????????????????????????????????# | | ????????????????????????????????????????????????# | | ????????????????????????????????????????????????## | | ?????????????????????????????????????????????????# | | ?????????????????????????????????????????????????? | | ?????????????????????????????????????????????????? | | ?????????????????????????????????????????????????? | | ?????????????????????????????????????????????????? | | ?????????????????????????????????????????????????? | | ?????????????????????????????????????????????????? | +----------------------------------------------------+ Best States ------------- Heat Dissipation 25 Energy Generation 10 Energy Capacity 250 Matter Stores 300 Matter Capacity 300 Sight Range 16 Terrain Scan Density 10 Evasion (%) 40 Recoil Reduction 2 Item Schematics ----------------- None Robot Schematics ------------------ None Fabricated ------------ Nothing Repaired ---------- Lgt. Assault Rifle | 33% | -10/Materials Studied --------- None Alien Tech Used ----------------- None Achievements -------------- None Challenges ------------ None Game ------ Seed MiningVisualMicrothruster Manual? 0 Play Time 00:15:29 Cumulative 71.2 hours Start 2026.09.01 @ 21:34:48 End 2026.09.01 @ 21:48:59 Sessions 1 Manual Loads 0 Difficulty Rogue Special Mode None Game No. 120 Rogue 120 Adventurer 0 Explorer 0 Win Type - Total 1 Types 1/0/0/0/0/0/0/0/0/0 Lore% 43 Gallery% 40 Achievement% 30 Wizard Run 0 Options --------- Layout 1 ASCII 1 Keyboard 1 Movement Numpad Keybinds 0 Fullscreen 2 Font 24/Smallcaps Map View 50x35 Zoom Use 0% Tactical HUD 1 Map Filters NONE Filters NONE Steam 1 RUN: 311ef127-cc44-4924-a345-2f3d00d0f951